[Event "*** SCC Grand Prix: Titled Tuesday Blitz"]
[Site "Chess.com"]
[Date "2020.08.11"]
[Round "2"]
[White "Bodnar_Mykola"]
[Black "seorobert1971"]
[Result "1/2-1/2"]
[WhiteElo "2500"]
[BlackElo "2732"]
[TimeControl "180+1"]
[EndTime "10:21:30 PDT"]
[Termination "Game drawn by repetition"]

1. d4 {[%clk 0:03:00.9]} 1... Nf6 {[%clk 0:03:00]} 2. c4 {[%clk 0:03:00.9]} 2...
e6 {[%clk 0:02:59.7]} 3. Nc3 {[%clk 0:03:01]} 3... Bb4 {[%clk 0:02:59.6]} 4. Qc2
{[%clk 0:02:59.4]} 4... O-O {[%clk 0:02:56.9]} 5. a3 {[%clk 0:02:59.2]} 5...
Bxc3+ {[%clk 0:02:56.9]} 6. Qxc3 {[%clk 0:03:00.1]} 6... d5 {[%clk 0:02:57.2]}
7. cxd5 {[%clk 0:02:59.8]} 7... Qxd5 {[%clk 0:02:47.3]} 8. Nf3 {[%clk
0:02:56.2]} 8... b6 {[%clk 0:02:44.4]} 9. e3 {[%clk 0:02:53.2]} 9... Ba6 {[%clk
0:02:37.6]} 10. Bxa6 {[%clk 0:02:44.1]} 10... Nxa6 {[%clk 0:02:37.6]} 11. O-O
{[%clk 0:02:26]} 11... c5 {[%clk 0:02:37.5]} 12. Rd1 {[%clk 0:02:18.5]} 12...
Rac8 {[%clk 0:02:31.3]} 13. Bd2 {[%clk 0:02:12.8]} 13... Ne4 {[%clk 0:02:24.8]}
14. Qd3 {[%clk 0:02:03.6]} 14... c4 {[%clk 0:02:22.7]} 15. Qc2 {[%clk
0:02:02.9]} 15... Nb8 {[%clk 0:02:10.5]} 16. Bc3 {[%clk 0:01:56.1]} 16... Nc6
{[%clk 0:02:01.4]} 17. Nd2 {[%clk 0:01:55.9]} 17... Nxd2 {[%clk 0:01:59.7]} 18.
Rxd2 {[%clk 0:01:56.4]} 18... f5 {[%clk 0:01:47.3]} 19. f3 {[%clk 0:01:55.8]}
19... Qd7 {[%clk 0:01:33.8]} 20. e4 {[%clk 0:01:52.4]} 20... fxe4 {[%clk
0:01:33.9]} 21. fxe4 {[%clk 0:01:53.3]} 21... Ne7 {[%clk 0:01:33.4]} 22. d5
{[%clk 0:01:39.2]} 22... exd5 {[%clk 0:01:32.5]} 23. exd5 {[%clk 0:01:40.1]}
23... Nf5 {[%clk 0:01:08.9]} 24. Re1 {[%clk 0:01:37.3]} 24... Rce8 {[%clk
0:01:05.7]} 25. Qd1 {[%clk 0:01:21.9]} 25... Rxe1+ {[%clk 0:01:04.8]} 26. Qxe1
{[%clk 0:01:22.8]} 26... Re8 {[%clk 0:01:03.4]} 27. Qf2 {[%clk 0:01:21.9]} 27...
Nd6 {[%clk 0:01:02.2]} 28. Qd4 {[%clk 0:01:09.5]} 28... Re4 {[%clk 0:00:57.9]}
29. Qf2 {[%clk 0:01:06.4]} 29... Re8 {[%clk 0:00:57.5]} 30. Re2 {[%clk
0:01:04.3]} 30... Rxe2 {[%clk 0:00:46.1]} 31. Qxe2 {[%clk 0:01:04.1]} 31... b5
{[%clk 0:00:44.2]} 32. Qe5 {[%clk 0:01:02.1]} 32... h6 {[%clk 0:00:39]} 33. h3
{[%clk 0:01:02.1]} 33... a6 {[%clk 0:00:38.8]} 34. Kh2 {[%clk 0:00:57.4]} 34...
Ne8 {[%clk 0:00:38.8]} 35. d6 {[%clk 0:00:41.7]} 35... Qxd6 {[%clk 0:00:35.7]}
36. Qxd6 {[%clk 0:00:41.9]} 36... Nxd6 {[%clk 0:00:35.7]} 37. Bb4 {[%clk
0:00:42.3]} 37... Ne4 {[%clk 0:00:34.4]} 38. g4 {[%clk 0:00:42.2]} 38... Kf7
{[%clk 0:00:33.7]} 39. Kg2 {[%clk 0:00:42.5]} 39... Ke6 {[%clk 0:00:31.2]} 40.
Bf8 {[%clk 0:00:42.1]} 40... Kf7 {[%clk 0:00:31.3]} 41. Bb4 {[%clk 0:00:41.9]}
41... g6 {[%clk 0:00:29.8]} 42. Kf3 {[%clk 0:00:42]} 42... Ng5+ {[%clk
0:00:29.9]} 43. Kg3 {[%clk 0:00:42.4]} 43... Ke6 {[%clk 0:00:30.2]} 44. h4
{[%clk 0:00:37.9]} 44... Nf7 {[%clk 0:00:26.3]} 45. h5 {[%clk 0:00:37.5]} 45...
gxh5 {[%clk 0:00:25.5]} 46. gxh5 {[%clk 0:00:38.4]} 46... Kf5 {[%clk 0:00:25.7]}
47. Bd2 {[%clk 0:00:38]} 47... Ng5 {[%clk 0:00:24.4]} 48. Bc1 {[%clk 0:00:35.7]}
48... Ne4+ {[%clk 0:00:22.9]} 49. Kf3 {[%clk 0:00:34.5]} 49... Nf6 {[%clk
0:00:20.6]} 50. Bxh6 {[%clk 0:00:34]} 50... Nxh5 {[%clk 0:00:20.8]} 51. Ke3
{[%clk 0:00:34.1]} 51... Ke6 {[%clk 0:00:20.4]} 52. Kd4 {[%clk 0:00:33.4]} 52...
Kd6 {[%clk 0:00:20.6]} 53. Bd2 {[%clk 0:00:32.9]} 53... Nf6 {[%clk 0:00:20]} 54.
Bb4+ {[%clk 0:00:31.1]} 54... Kc6 {[%clk 0:00:20.1]} 55. Ke5 {[%clk 0:00:32]}
55... Nd5 {[%clk 0:00:20]} 56. Bd2 {[%clk 0:00:32.6]} 56... Nb6 {[%clk
0:00:20.2]} 57. Kd4 {[%clk 0:00:31.9]} 57... Na4 {[%clk 0:00:20.4]} 58. Bc1
{[%clk 0:00:31.3]} 58... Nc5 {[%clk 0:00:20.7]} 59. Bg5 {[%clk 0:00:29.2]} 59...
Nb3+ {[%clk 0:00:19.9]} 60. Kc3 {[%clk 0:00:29]} 60... Kd5 {[%clk 0:00:19.6]}
61. Be3 {[%clk 0:00:28.6]} 61... a5 {[%clk 0:00:18.6]} 62. Bg1 {[%clk
0:00:26.6]} 62... Nc5 {[%clk 0:00:18]} 63. Be3 {[%clk 0:00:23]} 63... Ne4+
{[%clk 0:00:17.9]} 64. Kc2 {[%clk 0:00:23]} 64... Nc5 {[%clk 0:00:16.2]} 65. Bg1
{[%clk 0:00:22.1]} 65... Nb3 {[%clk 0:00:15.6]} 66. Kc3 {[%clk 0:00:20.1]} 66...
Nc5 {[%clk 0:00:12.6]} 67. Kc2 {[%clk 0:00:20.1]} 67... Nd3 {[%clk 0:00:12.4]}
68. Be3 {[%clk 0:00:19.7]} 68... Ke4 {[%clk 0:00:12]} 69. Bb6 {[%clk 0:00:19.2]}
69... a4 {[%clk 0:00:12.3]} 70. Ba5 {[%clk 0:00:19.5]} 70... Kf3 {[%clk
0:00:12.3]} 71. Bc3 {[%clk 0:00:18]} 71... Ke2 {[%clk 0:00:12.3]} 72. Ba5 {[%clk
0:00:17.9]} 72... Nc5 {[%clk 0:00:11.8]} 73. Kc3 {[%clk 0:00:17.5]} 73... Nd3
{[%clk 0:00:10.5]} 74. Bd8 {[%clk 0:00:16.4]} 74... Kd1 {[%clk 0:00:10.5]} 75.
Bg5 {[%clk 0:00:16.6]} 75... Ke2 {[%clk 0:00:07.2]} 76. Bh6 {[%clk 0:00:16.5]}
76... Kf3 {[%clk 0:00:07.1]} 77. Bg5 {[%clk 0:00:16.6]} 77... Ke4 {[%clk
0:00:07.3]} 78. Bh6 {[%clk 0:00:16.7]} 78... Kd5 {[%clk 0:00:08.2]} 79. Bg5
{[%clk 0:00:17]} 79... Kc6 {[%clk 0:00:08.8]} 80. Be3 {[%clk 0:00:16.7]} 80...
Nc5 {[%clk 0:00:08.8]} 81. Bh6 {[%clk 0:00:16.7]} 81... Ne4+ {[%clk 0:00:08.7]}
82. Kb4 {[%clk 0:00:16.9]} 82... Nd6 {[%clk 0:00:07.9]} 83. Kc3 {[%clk
0:00:16.1]} 83... Nf5 {[%clk 0:00:07.5]} 84. Bf4 {[%clk 0:00:15.3]} 84... Ne7
{[%clk 0:00:07.6]} 85. Bc1 {[%clk 0:00:14.5]} 85... Nd5+ {[%clk 0:00:08.5]} 86.
Kd4 {[%clk 0:00:14.7]} 86... Nc7 {[%clk 0:00:07.7]} 87. Bd2 {[%clk 0:00:12.7]}
87... Ne6+ {[%clk 0:00:07.9]} 88. Kc3 {[%clk 0:00:13]} 88... Nc5 {[%clk
0:00:08.8]} 89. Bh6 {[%clk 0:00:12.5]} 89... Kd5 {[%clk 0:00:08.9]} 90. Kb4
{[%clk 0:00:11.9]} 90... Nd3+ {[%clk 0:00:09.1]} 91. Kc3 {[%clk 0:00:10.1]}
91... Ke4 {[%clk 0:00:08.4]} 92. Bd2 {[%clk 0:00:08.1]} 92... Kf3 {[%clk
0:00:08.5]} 93. Bh6 {[%clk 0:00:08.5]} 93... Ke2 {[%clk 0:00:08.5]} 94. Bg5
{[%clk 0:00:08.7]} 94... Kd1 {[%clk 0:00:08.3]} 95. Bh6 {[%clk 0:00:09]} 95...
Ke2 {[%clk 0:00:07.5]} 96. Bg5 {[%clk 0:00:08.8]} 96... Nc5 {[%clk 0:00:06]} 97.
Kb4 {[%clk 0:00:08.6]} 97... Nd3+ {[%clk 0:00:06.2]} 98. Kc3 {[%clk 0:00:08.8]}
1/2-1/2

[Event "*** SCC Grand Prix: Titled Tuesday Blitz"]
[Site "Chess.com"]
[Date "2020.08.11"]
[Round "2"]
[White "GelmanAlexander"]
[Black "Zkid"]
[Result "0-1"]
[WhiteElo "2567"]
[BlackElo "2860"]
[TimeControl "180+1"]
[EndTime "10:21:59 PDT"]
[Termination "Zkid won on time"]

1. d4 {[%clk 0:03:00.9]} 1... d5 {[%clk 0:02:59.8]} 2. Nc3 {[%clk 0:02:59.5]}
2... Nf6 {[%clk 0:02:57]} 3. Bf4 {[%clk 0:02:59.3]} 3... c6 {[%clk 0:02:56.7]}
4. f3 {[%clk 0:02:59.5]} 4... Bf5 {[%clk 0:02:54.9]} 5. g4 {[%clk 0:02:59.9]}
5... Bg6 {[%clk 0:02:54.8]} 6. h4 {[%clk 0:03:00.4]} 6... h6 {[%clk 0:02:54.9]}
7. e3 {[%clk 0:03:00.2]} 7... e6 {[%clk 0:02:54.8]} 8. Nge2 {[%clk 0:02:59.1]}
8... Nbd7 {[%clk 0:02:54.1]} 9. Qd2 {[%clk 0:02:59.1]} 9... a5 {[%clk
0:02:48.6]} 10. Bg3 {[%clk 0:02:52.4]} 10... a4 {[%clk 0:02:46.9]} 11. a3 {[%clk
0:02:41.2]} 11... Nb6 {[%clk 0:02:35.5]} 12. Nf4 {[%clk 0:02:40.9]} 12... Bh7
{[%clk 0:02:35.1]} 13. g5 {[%clk 0:02:39]} 13... Nfd7 {[%clk 0:02:35.2]} 14. g6
{[%clk 0:02:26.6]} 14... Bxg6 {[%clk 0:02:33.8]} 15. Nxg6 {[%clk 0:02:26.6]}
15... fxg6 {[%clk 0:02:34.7]} 16. O-O-O {[%clk 0:02:15.6]} 16... Qf6 {[%clk
0:02:24.2]} 17. e4 {[%clk 0:02:11.4]} 17... Qxf3 {[%clk 0:02:17.9]} 18. Rg1
{[%clk 0:02:03.3]} 18... O-O-O {[%clk 0:02:06.6]} 19. Be2 {[%clk 0:01:30.9]}
19... Qf7 {[%clk 0:02:04.3]} 20. Rdf1 {[%clk 0:01:28.5]} 20... Qe8 {[%clk
0:02:01.3]} 21. exd5 {[%clk 0:01:26.7]} 21... exd5 {[%clk 0:01:40.6]} 22. Qf4
{[%clk 0:01:21.8]} 22... Ne5 {[%clk 0:01:21.9]} 23. Qxe5 {[%clk 0:01:14.9]}
23... Bd6 {[%clk 0:01:16]} 24. Bg4+ {[%clk 0:01:07.1]} 24... Kb8 {[%clk
0:01:14.6]} 25. Qxe8 {[%clk 0:00:59.9]} 25... Rhxe8 {[%clk 0:01:15.5]} 26. Bxd6+
{[%clk 0:00:58.2]} 26... Rxd6 {[%clk 0:01:16.4]} 27. Rf7 {[%clk 0:00:57.6]}
27... Nc4 {[%clk 0:01:12.8]} 28. Rxg7 {[%clk 0:00:56.3]} 28... Rf6 {[%clk
0:01:08.8]} 29. Be2 {[%clk 0:00:56.3]} 29... Ne3 {[%clk 0:01:07]} 30. R7xg6
{[%clk 0:00:55]} 30... Rf2 {[%clk 0:01:04.5]} 31. Rg8 {[%clk 0:00:52.7]} 31...
Rxg8 {[%clk 0:01:03.3]} 32. Rxg8+ {[%clk 0:00:53.6]} 32... Ka7 {[%clk
0:01:03.6]} 33. Rg6 {[%clk 0:00:50.3]} 33... Rh2 {[%clk 0:01:02.7]} 34. h5
{[%clk 0:00:50.7]} 34... Nf5 {[%clk 0:01:02.5]} 35. Kd2 {[%clk 0:00:47.6]} 35...
Nxd4 {[%clk 0:00:59.6]} 36. Rxh6 {[%clk 0:00:47.7]} 36... Nf5 {[%clk 0:00:56.9]}
37. Rf6 {[%clk 0:00:47.1]} 37... Ng3 {[%clk 0:00:56.9]} 38. Rg6 {[%clk
0:00:40.4]} 38... Rh3 {[%clk 0:00:45]} 39. Bg4 {[%clk 0:00:35]} 39... Rh2+
{[%clk 0:00:43.3]} 40. Kd3 {[%clk 0:00:35.5]} 40... Nxh5 {[%clk 0:00:32.7]} 41.
Bxh5 {[%clk 0:00:33.2]} 41... Rxh5 {[%clk 0:00:33.6]} 42. Nxa4 {[%clk
0:00:33.5]} 42... Rh3+ {[%clk 0:00:33.8]} 43. Kd2 {[%clk 0:00:33.9]} 43... Rh2+
{[%clk 0:00:34.3]} 44. Kc3 {[%clk 0:00:31.8]} 44... Rh3+ {[%clk 0:00:33.7]} 45.
Kb4 {[%clk 0:00:31.9]} 45... Rh4+ {[%clk 0:00:33.7]} 46. Kb3 {[%clk 0:00:32.3]}
46... Rc4 {[%clk 0:00:31.5]} 47. Nc3 {[%clk 0:00:29]} 47... Rf4 {[%clk 0:00:30]}
48. Rg7 {[%clk 0:00:29]} 48... Rf3 {[%clk 0:00:29.9]} 49. Ka2 {[%clk 0:00:26.4]}
49... Rf4 {[%clk 0:00:27.4]} 50. Rg2 {[%clk 0:00:25.7]} 50... Kb6 {[%clk
0:00:25.9]} 51. b3 {[%clk 0:00:25.1]} 51... Kc5 {[%clk 0:00:25]} 52. Kb2 {[%clk
0:00:25.7]} 52... Rf3 {[%clk 0:00:24.7]} 53. Rd2 {[%clk 0:00:25.8]} 53... Rh3
{[%clk 0:00:23.5]} 54. Na4+ {[%clk 0:00:25.9]} 54... Kb5 {[%clk 0:00:22.4]} 55.
Nc3+ {[%clk 0:00:26.6]} 55... Kc5 {[%clk 0:00:22.5]} 56. Rg2 {[%clk 0:00:27.1]}
56... Rf3 {[%clk 0:00:21.6]} 57. b4+ {[%clk 0:00:27.5]} 57... Kb6 {[%clk
0:00:20.2]} 58. Rg4 {[%clk 0:00:27.2]} 58... Ka6 {[%clk 0:00:20.1]} 59. a4
{[%clk 0:00:26.8]} 59... Kb6 {[%clk 0:00:18.9]} 60. Kb3 {[%clk 0:00:27.2]} 60...
Rh3 {[%clk 0:00:18.4]} 61. a5+ {[%clk 0:00:26.9]} 61... Ka6 {[%clk 0:00:18.7]}
62. Rd4 {[%clk 0:00:27]} 62... Rf3 {[%clk 0:00:18.5]} 63. Rd3 {[%clk 0:00:27.2]}
63... Rf4 {[%clk 0:00:18.4]} 64. Na4 {[%clk 0:00:27.6]} 64... Kb5 {[%clk
0:00:18.8]} 65. Nc3+ {[%clk 0:00:25.7]} 65... Ka6 {[%clk 0:00:19]} 66. Ne2
{[%clk 0:00:26.1]} 66... Re4 {[%clk 0:00:18.7]} 67. Nd4 {[%clk 0:00:25.6]} 67...
Rf4 {[%clk 0:00:18.3]} 68. c3 {[%clk 0:00:26.2]} 68... Rf1 {[%clk 0:00:18.1]}
69. Re3 {[%clk 0:00:26.5]} 69... Rb1+ {[%clk 0:00:18.4]} 70. Kc2 {[%clk
0:00:27]} 70... Rh1 {[%clk 0:00:18.3]} 71. Re8 {[%clk 0:00:27.6]} 71... Rh2+
{[%clk 0:00:18.2]} 72. Kb3 {[%clk 0:00:27.6]} 72... Ka7 {[%clk 0:00:18.7]} 73.
Re7 {[%clk 0:00:28.2]} 73... Ka6 {[%clk 0:00:18.4]} 74. Re6 {[%clk 0:00:28.6]}
74... Ka7 {[%clk 0:00:17.9]} 75. b5 {[%clk 0:00:22.5]} 75... c5 {[%clk
0:00:18.2]} 76. Nc2 {[%clk 0:00:20]} 76... Rh1 {[%clk 0:00:17.8]} 77. Na3 {[%clk
0:00:19.6]} 77... Ra1 {[%clk 0:00:17.1]} 78. Ka4 {[%clk 0:00:18.7]} 78... Rc1
{[%clk 0:00:16.3]} 79. Re8 {[%clk 0:00:17.8]} 79... b6 {[%clk 0:00:15.4]} 80.
Re7+ {[%clk 0:00:17.5]} 80... Kb8 {[%clk 0:00:15.7]} 81. axb6 {[%clk 0:00:16.9]}
81... Rxc3 {[%clk 0:00:16.1]} 82. Rc7 {[%clk 0:00:15.2]} 82... d4 {[%clk
0:00:15.2]} 83. Nb1 {[%clk 0:00:12.4]} 83... Rc1 {[%clk 0:00:14.7]} 84. Nd2
{[%clk 0:00:12.2]} 84... d3 {[%clk 0:00:15]} 85. Kb3 {[%clk 0:00:11.7]} 85...
Rc2 {[%clk 0:00:13.7]} 86. Nc4 {[%clk 0:00:11.4]} 86... Rc1 {[%clk 0:00:14]} 87.
Rxc5 {[%clk 0:00:11]} 87... d2 {[%clk 0:00:14.5]} 88. Rd5 {[%clk 0:00:03.7]}
88... d1=Q+ {[%clk 0:00:14.4]} 89. Rxd1 {[%clk 0:00:04.1]} 89... Rxd1 {[%clk
0:00:15.3]} 90. Kb4 {[%clk 0:00:04.7]} 90... Kb7 {[%clk 0:00:15.7]} 91. Kc5
{[%clk 0:00:05.3]} 91... Rh1 {[%clk 0:00:15.4]} 92. Na5+ {[%clk 0:00:04.9]}
92... Kb8 {[%clk 0:00:14.7]} 93. b7 {[%clk 0:00:05.5]} 93... Rh6 {[%clk
0:00:13.7]} 94. Kd5 {[%clk 0:00:04.2]} 94... Rb6 {[%clk 0:00:12.2]} 95. Kc5
{[%clk 0:00:04.1]} 95... Rh6 {[%clk 0:00:12.7]} 96. Kd5 {[%clk 0:00:04]} 96...
Kc7 {[%clk 0:00:12.5]} 97. Kc5 {[%clk 0:00:04]} 97... Rh5+ {[%clk 0:00:12.7]}
98. Kb4 {[%clk 0:00:04.5]} 98... Rh8 {[%clk 0:00:13.1]} 99. Kc5 {[%clk
0:00:04.7]} 99... Rh5+ {[%clk 0:00:12.4]} 100. Kb4 {[%clk 0:00:05.2]} 100... Rh1
{[%clk 0:00:08.2]} 101. Kc5 {[%clk 0:00:05]} 101... Rc1+ {[%clk 0:00:07.6]} 102.
Kb4 {[%clk 0:00:05.4]} 102... Kb8 {[%clk 0:00:07.6]} 103. Ka4 {[%clk 0:00:04.1]}
103... Rb1 {[%clk 0:00:07.3]} 104. Ka3 {[%clk 0:00:02.9]} 104... Rxb5 {[%clk
0:00:06.7]} 105. Ka4 {[%clk 0:00:03.8]} 105... Rb6 {[%clk 0:00:06.9]} 106. Ka3
{[%clk 0:00:03.6]} 106... Kc7 {[%clk 0:00:06.8]} 107. Ka4 {[%clk 0:00:04.5]}
107... Rb1 {[%clk 0:00:06.8]} 108. Ka3 {[%clk 0:00:04.8]} 108... Kd6 {[%clk
0:00:05.9]} 109. Ka4 {[%clk 0:00:05.7]} 109... Kc5 {[%clk 0:00:06.1]} 110. Nb3+
{[%clk 0:00:05.4]} 110... Kc4 {[%clk 0:00:03.7]} 111. b8=Q {[%clk 0:00:05.6]}
111... Kc3 {[%clk 0:00:04.1]} 112. Qc7+ {[%clk 0:00:05.4]} 112... Kb2 {[%clk
0:00:03.2]} 113. Qc4 {[%clk 0:00:04.8]} 113... Rd1 {[%clk 0:00:02.9]} 114. Kb4
{[%clk 0:00:03.5]} 114... Kb1 {[%clk 0:00:02.3]} 115. Nd4 {[%clk 0:00:02.7]}
115... Rd2 {[%clk 0:00:02.1]} 116. Qb3+ {[%clk 0:00:02.5]} 116... Rb2 {[%clk
0:00:02.2]} 117. Kc3 {[%clk 0:00:02.5]} 117... Rxb3+ {[%clk 0:00:02.2]} 0-1

[Event "*** SCC Grand Prix: Titled Tuesday Blitz"]
[Site "Chess.com"]
[Date "2020.08.11"]
[Round "3"]
[White "Chess_Boxer123"]
[Black "Chessbard1972"]
[Result "1-0"]
[WhiteElo "2562"]
[BlackElo "2339"]
[TimeControl "180+1"]
[EndTime "10:24:49 PDT"]
[Termination "Chess_Boxer123 won by resignation"]

1. Nf3 {[%clk 0:03:00.9]} 1... c5 {[%clk 0:02:58.8]} 2. b3 {[%clk 0:03:01]} 2...
d5 {[%clk 0:02:56.2]} 3. Bb2 {[%clk 0:03:00.9]} 3... Nc6 {[%clk 0:02:56.3]} 4.
e3 {[%clk 0:03:01.3]} 4... a6 {[%clk 0:02:55.6]} 5. Be2 {[%clk 0:02:59.6]} 5...
f6 {[%clk 0:02:54]} 6. d4 {[%clk 0:02:59.2]} 6... Bg4 {[%clk 0:02:43.4]} 7. O-O
{[%clk 0:02:58.4]} 7... e6 {[%clk 0:02:42.9]} 8. c4 {[%clk 0:02:57.7]} 8... cxd4
{[%clk 0:02:40]} 9. Nxd4 {[%clk 0:02:56.3]} 9... Bxe2 {[%clk 0:02:38.6]} 10.
Qxe2 {[%clk 0:02:57.2]} 10... Nh6 {[%clk 0:02:34.3]} 11. Nxe6 {[%clk 0:02:56.4]}
11... Qd6 {[%clk 0:02:30.5]} 12. cxd5 {[%clk 0:02:50.7]} 12... Nb4 {[%clk
0:02:24.5]} 13. e4 {[%clk 0:02:50.7]} 13... Be7 {[%clk 0:02:11.8]} 14. e5 {[%clk
0:02:48.6]} 14... Qb6 {[%clk 0:02:02]} 15. d6 {[%clk 0:02:44.2]} 15... Bf8
{[%clk 0:01:57.5]} 16. Nc7+ {[%clk 0:02:39.9]} 16... Kf7 {[%clk 0:01:55.9]} 17.
e6+ {[%clk 0:02:38.6]} 17... Kg8 {[%clk 0:01:54.4]} 18. Nxa8 {[%clk 0:02:31.3]}
18... Bxd6 {[%clk 0:01:52.9]} 19. Nxb6 {[%clk 0:02:30.4]} 1-0

[Event "*** SCC Grand Prix: Titled Tuesday Blitz"]
[Site "Chess.com"]
[Date "2020.08.11"]
[Round "3"]
[White "Murad_Ibrahimli"]
[Black "vvg2"]
[Result "1-0"]
[WhiteElo "2696"]
[BlackElo "2235"]
[TimeControl "180+1"]
[EndTime "10:24:58 PDT"]
[Termination "Murad_Ibrahimli won by resignation"]

1. c4 {[%clk 0:03:00.9]} 1... Nf6 {[%clk 0:02:58.7]} 2. Nc3 {[%clk 0:03:00.1]}
2... c5 {[%clk 0:02:56.5]} 3. g3 {[%clk 0:02:58.7]} 3... g6 {[%clk 0:02:55]} 4.
Bg2 {[%clk 0:02:58.3]} 4... Bg7 {[%clk 0:02:53.4]} 5. Nf3 {[%clk 0:02:55]} 5...
Nc6 {[%clk 0:02:52]} 6. O-O {[%clk 0:02:53.5]} 6... d5 {[%clk 0:02:51.5]} 7. d4
{[%clk 0:02:44.3]} 7... cxd4 {[%clk 0:02:41.4]} 8. Nxd4 {[%clk 0:02:41.5]} 8...
Nxd4 {[%clk 0:02:38.9]} 9. Qxd4 {[%clk 0:02:40.2]} 9... dxc4 {[%clk 0:02:30.3]}
10. Qxd8+ {[%clk 0:02:34.9]} 10... Kxd8 {[%clk 0:02:30.6]} 11. Rd1+ {[%clk
0:02:35.4]} 11... Kc7 {[%clk 0:02:25]} 12. Bf4+ {[%clk 0:02:34.7]} 12... Kb6
{[%clk 0:02:25.1]} 13. Be3+ {[%clk 0:02:33]} 13... Ka5 {[%clk 0:02:21.5]} 14.
Bc5 {[%clk 0:02:11.2]} 14... Be6 {[%clk 0:02:09.7]} 15. Bxb7 {[%clk 0:02:02.8]}
1-0

[Event "*** SCC Grand Prix: Titled Tuesday Blitz"]
[Site "Chess.com"]
[Date "2020.08.11"]
[Round "3"]
[White "Lysiak_Poltorak"]
[Black "Djager97"]
[Result "0-1"]
[WhiteElo "2338"]
[BlackElo "2593"]
[TimeControl "180+1"]
[EndTime "10:24:59 PDT"]
[Termination "Djager97 won by resignation"]

1. e4 {[%clk 0:03:00.9]} 1... e5 {[%clk 0:02:59.9]} 2. f4 {[%clk 0:03:00.5]}
2... d5 {[%clk 0:02:57.1]} 3. exd5 {[%clk 0:03:00.2]} 3... exf4 {[%clk 0:02:57]}
4. Nf3 {[%clk 0:02:57.9]} 4... Nf6 {[%clk 0:02:56.6]} 5. d4 {[%clk 0:02:57.6]}
5... Nxd5 {[%clk 0:02:51.6]} 6. c4 {[%clk 0:02:57.2]} 6... Bb4+ {[%clk
0:02:51.1]} 7. Bd2 {[%clk 0:02:50.8]} 7... Bxd2+ {[%clk 0:02:50.3]} 8. Qxd2
{[%clk 0:02:48]} 8... Ne3 {[%clk 0:02:50.5]} 9. Nc3 {[%clk 0:02:45.7]} 9... O-O
{[%clk 0:02:48.4]} 10. Ne2 {[%clk 0:02:42.8]} 10... Bf5 {[%clk 0:02:42.7]} 11.
Rc1 {[%clk 0:02:37.2]} 11... Re8 {[%clk 0:02:40.8]} 12. h3 {[%clk 0:02:36]}
12... Be4 {[%clk 0:02:23.7]} 13. Kf2 {[%clk 0:02:13.2]} 13... Bxf3 {[%clk
0:02:14.1]} 14. Kxf3 {[%clk 0:02:05.5]} 14... Nc6 {[%clk 0:02:13.3]} 15. Nxf4
{[%clk 0:02:03.6]} 15... Nxd4+ {[%clk 0:02:10.8]} 16. Kf2 {[%clk 0:02:04.1]}
16... Qf6 {[%clk 0:02:05.8]} 17. g4 {[%clk 0:01:59.1]} 0-1

[Event "*** SCC Grand Prix: Titled Tuesday Blitz"]
[Site "Chess.com"]
[Date "2020.08.11"]
[Round "3"]
[White "czasnaszachy"]
[Black "Schandenfreude"]
[Result "0-1"]
[WhiteElo "2220"]
[BlackElo "2546"]
[TimeControl "180+1"]
[EndTime "10:25:10 PDT"]
[Termination "Schandenfreude won by resignation"]

1. d4 {[%clk 0:03:00.9]} 1... Nf6 {[%clk 0:02:59.8]} 2. c4 {[%clk 0:03:00.9]}
2... g6 {[%clk 0:03:00]} 3. Nc3 {[%clk 0:03:01.1]} 3... d5 {[%clk 0:02:59.4]} 4.
cxd5 {[%clk 0:03:00.9]} 4... Nxd5 {[%clk 0:02:59.3]} 5. e3 {[%clk 0:03:01.3]}
5... Bg7 {[%clk 0:02:59]} 6. Qb3 {[%clk 0:02:58.9]} 6... Nb6 {[%clk 0:02:54]} 7.
Bd3 {[%clk 0:02:50.3]} 7... O-O {[%clk 0:02:53.6]} 8. Nge2 {[%clk 0:02:50.2]}
8... a5 {[%clk 0:02:54.1]} 9. O-O {[%clk 0:02:48.8]} 9... a4 {[%clk 0:02:54]}
10. Qc2 {[%clk 0:02:47.9]} 10... Nc6 {[%clk 0:02:48.3]} 11. a3 {[%clk
0:02:41.5]} 11... e5 {[%clk 0:02:48.1]} 12. dxe5 {[%clk 0:02:34.1]} 12... Nxe5
{[%clk 0:02:48.2]} 13. Rd1 {[%clk 0:02:32.6]} 13... Nxd3 {[%clk 0:02:42.7]} 14.
Rxd3 {[%clk 0:02:27.3]} 14... Qe7 {[%clk 0:02:41.9]} 15. e4 {[%clk 0:02:22.8]}
15... Be6 {[%clk 0:02:36]} 16. Nd5 {[%clk 0:02:16.8]} 16... Nxd5 {[%clk
0:02:31.1]} 17. exd5 {[%clk 0:02:05]} 17... Bf5 {[%clk 0:02:31.1]} 18. Re3
{[%clk 0:02:04.9]} 18... Qxe3 {[%clk 0:02:25.8]} 19. Bxe3 {[%clk 0:02:03.6]}
19... Bxc2 {[%clk 0:02:25.5]} 20. Rc1 {[%clk 0:02:03.5]} 20... Bb3 {[%clk
0:02:20.2]} 0-1

[Event "*** SCC Grand Prix: Titled Tuesday Blitz"]
[Site "Chess.com"]
[Date "2020.08.11"]
[Round "3"]
[White "realmadridtv"]
[Black "gagtemp"]
[Result "1-0"]
[WhiteElo "2458"]
[BlackElo "1965"]
[TimeControl "180+1"]
[EndTime "10:25:30 PDT"]
[Termination "realmadridtv won by checkmate"]

1. d4 {[%clk 0:03:00.9]} 1... d5 {[%clk 0:02:59.4]} 2. c4 {[%clk 0:02:59.4]}
2... e6 {[%clk 0:02:59.4]} 3. g3 {[%clk 0:02:59.7]} 3... c5 {[%clk 0:02:59.1]}
4. Nf3 {[%clk 0:02:59.3]} 4... Nc6 {[%clk 0:02:58.9]} 5. Bg2 {[%clk 0:02:59.1]}
5... Nf6 {[%clk 0:02:58.9]} 6. O-O {[%clk 0:02:58.2]} 6... Be7 {[%clk
0:02:58.8]} 7. cxd5 {[%clk 0:02:52.8]} 7... exd5 {[%clk 0:02:59.7]} 8. b3 {[%clk
0:02:51.5]} 8... O-O {[%clk 0:02:58.9]} 9. Bb2 {[%clk 0:02:50.9]} 9... Bg4
{[%clk 0:02:58.3]} 10. Nbd2 {[%clk 0:02:47.9]} 10... Qd7 {[%clk 0:02:57.6]} 11.
dxc5 {[%clk 0:02:38.8]} 11... Bxc5 {[%clk 0:02:56.7]} 12. Bxf6 {[%clk
0:02:38.3]} 12... gxf6 {[%clk 0:02:56.3]} 13. e4 {[%clk 0:02:34.8]} 13... d4
{[%clk 0:02:50.5]} 14. h3 {[%clk 0:02:33.6]} 14... Bxh3 {[%clk 0:02:49.3]} 15.
Nh4 {[%clk 0:02:27.1]} 15... Bxg2 {[%clk 0:02:47.6]} 16. Kxg2 {[%clk 0:02:25.3]}
16... Kh8 {[%clk 0:02:34.7]} 17. Qh5 {[%clk 0:02:24.7]} 17... Ne5 {[%clk
0:02:28.1]} 18. Nf5 {[%clk 0:02:19.9]} 18... Rg8 {[%clk 0:01:39.2]} 19. Qxh7+
{[%clk 0:02:18.4]} 19... Kxh7 {[%clk 0:01:37.6]} 20. Rh1+ {[%clk 0:02:19]} 20...
Kg6 {[%clk 0:01:37.6]} 21. Rh6+ {[%clk 0:02:19.6]} 21... Kg5 {[%clk 0:01:36.5]}
22. f4+ {[%clk 0:02:20]} 22... Kg4 {[%clk 0:01:32.4]} 23. Rh4# {[%clk
0:02:20.1]} 1-0